bitfinex-derivatives/quotes_SOLF0:USTF0_20260220
["timestamp","ask_amount","ask_price","bid_price","bid_amount"]
[1771584163938,1.10948769,84.366,84.323,4.20366982]
[1771584164143,3.03825127,84.36,84.323,4.20366982]
[1771584165843,3.03825127,84.36,84.331,4.20366982]
[1771584166043,3.03825127,84.36,84.277,21.93350782]
[1771584166044,0.96295222,84.403,84.341,4.20366982]
[1771584166340,11.01233151,84.417,84.341,4.20366982]
[1771584166341,3.03825127,84.37,84.341,4.20366982]
[1771584166544,0.95037819,84.379,84.33,4.20366982]
[1771584166545,3.03825127,84.36,84.33,4.20366982]
[1771584166846,3.03825127,84.37,84.33,4.20366982]
[1771584167241,3.03825127,84.38,84.332,4.20366982]
[1771584167639,3.03825127,84.38,84.345,4.20366982]
[1771584168944,3.03825127,84.37,84.345,4.20366982]
[1771584174739,3.03825127,84.37,84.346,4.20366982]
[1771584174942,3.03825127,84.38,84.346,4.20366982]
[1771584175746,3.03825127,84.38,84.348,4.20366982]
[1771584179450,0.86902218,84.392,84.352,4.20366982]
[1771584179646,3.03825127,84.38,84.352,4.20366982]
[1771584183250,0.85003529,84.379,84.343,10.6754]
[1771584183749,0.85003529,84.379,84.343,14.87906982]
[1771584184144,0.85003529,84.379,84.346,10.675]
[1771584184348,0.85003529,84.379,84.346,14.76563617]
[1771584185851,3.03535009,84.38,84.349,4.09063617]
[1771584186048,3.03535009,84.39,84.349,4.09063617]
[1771584186651,3.03535009,84.39,84.353,4.09063617]
[1771584186950,3.03535009,84.38,84.316,4.29448819]
[1771584187153,3.03535009,84.38,84.331,4.29448819]
[1771584188547,0.78894554,84.389,84.331,4.29448819]
[1771584188754,10.6708,84.38,84.34,4.29448819]
[1771584189046,0.78894554,84.389,84.34,4.29448819]
[1771584189250,3.03535009,84.39,84.341,4.29448819]
[1771584190753,3.03535009,84.39,84.351,4.29448819]
[1771584196354,3.03535009,84.39,84.354,10.674]
[1771584196560,3.03535009,84.39,84.355,4.29448819]
[1771584198458,0.65390385,84.388,84.355,4.29448819]
[1771584198854,3.03535009,84.38,84.355,4.29448819]
[1771584202453,0.63017386,84.379,84.342,4.29448819]
[1771584202758,3.03535009,84.35,84.319,4.29448819]
[1771584203161,3.03535009,84.36,84.319,4.29448819]
[1771584203563,3.03535009,84.34,84.308,4.29448819]
[1771584203764,0.62129535,84.339,84.291,4.29448819]
[1771584204061,3.03535009,84.33,84.291,4.29448819]
[1771584205058,3.03535009,84.32,84.291,4.29448819]
[1771584205763,3.03535009,84.33,84.291,4.29448819]
[1771584206066,3.03535009,84.33,84.293,4.29448819]
[1771584206659,3.03535009,84.33,84.295,10.6815]
[1771584206864,0.6218261,84.327,84.267,4.29448819]
[1771584207064,3.03535009,84.31,84.267,4.29448819]
[1771584207264,0.6218261,84.319,84.24,62.0]
[1771584207265,0.6218261,84.319,84.273,4.29448819]
[1771584207465,3.03535009,84.32,84.273,4.29448819]
[1771584208165,0.6058425,84.319,84.273,4.29448819]
[1771584208355,3.03535009,84.31,84.273,4.29448819]
[1771584209271,0.6058425,84.319,84.273,4.29448819]
[1771584209467,3.03535009,84.31,84.273,4.29448819]
[1771584210260,3.74258541,84.31,84.273,4.29448819]
[1771584210461,3.03535009,84.29,84.258,4.29448819]
[1771584210665,0.70723532,84.299,84.258,4.29448819]
[1771584210862,3.74258541,84.31,84.26,3.03535009]
[1771584211065,3.74258541,84.31,84.261,4.29448819]
[1771584211870,3.03535009,84.31,84.261,4.29448819]
[1771584212661,3.03535009,84.31,84.263,4.29448819]
[1771584213968,11.01233151,84.36,84.263,4.29448819]
[1771584213969,0.70070651,84.299,84.263,4.29448819]
[1771584214166,0.70070651,84.289,84.24,3.03535009]
[1771584214366,3.03535009,84.29,84.241,4.29448819]
[1771584215568,3.03535009,84.3,84.258,4.29448819]
[1771584216665,3.03535009,84.3,84.259,10.6861]
[1771584216871,3.03535009,84.3,84.26,4.29448819]
[1771584217672,3.03535009,84.3,84.263,4.02069357]
[1771584217864,0.62363548,84.299,84.263,4.02069357]
[1771584218069,0.62363548,84.299,84.251,4.02095352]
[1771584218375,3.03535009,84.29,84.251,4.02095352]
[1771584219784,3.03535009,84.29,84.253,14.61264555]
[1771584219975,0.62363548,84.299,84.254,3.92584555]
[1771584220379,3.03535009,84.29,84.254,3.92584555]
[1771584220775,3.03535009,84.29,84.256,3.92584555]
[1771584221176,3.03535009,84.29,84.267,10.685]
[1771584221377,3.03535009,84.29,84.256,3.92584555]
[1771584221772,3.03535009,84.3,84.258,3.92584555]
[1771584221976,3.03535009,84.3,84.261,3.92584555]
[1771584222677,3.03535009,84.3,84.265,3.92584555]
[1771584223073,3.03535009,84.31,84.265,3.92584555]
[1771584223374,8.60878617,84.364,84.222,21.3815]
[1771584223375,3.03535009,84.32,84.284,3.9340191]
[1771584223975,0.75865146,84.325,84.288,3.93443507]
[1771584224179,3.03535009,84.33,84.288,3.93443507]
[1771584225774,3.03535009,84.32,84.29,10.6821]
[1771584226778,3.03535009,84.33,84.29,10.6821]
[1771584227776,0.68132223,84.338,84.293,14.65354894]
[1771584227979,3.03535009,84.33,84.293,14.65354894]
[1771584230781,3.03535009,84.33,84.293,3.97184894]
[1771584234797,0.73273114,84.329,84.295,3.92584555]
[1771584235500,0.73273114,84.329,84.296,10.6814]
[1771584235697,0.73273114,84.329,84.297,3.92584555]
[1771584236699,3.03535009,84.33,84.297,3.92584555]
[1771584239391,3.03535009,84.33,84.298,10.6811]
[1771584240298,3.03535009,84.31,84.275,3.92584555]
[1771584240504,3.03535009,84.3,84.251,3.92584555]
[1771584240705,0.72361579,84.309,84.261,3.92584555]
[1771584241004,3.03535009,84.32,84.279,3.92584555]
[1771584242695,3.03535009,84.32,84.282,10.6831]
[1771584242904,3.03535009,84.32,84.282,14.60894555]
[1771584243600,0.72361579,84.321,84.287,10.6825]
[1771584243807,3.03535009,84.32,84.287,14.61496472]
[1771584246009,3.03962459,84.32,84.287,14.61496472]
[1771584247512,3.03962459,84.32,84.287,3.93246472]
[1771584250612,3.03962459,84.31,84.27,4.02356225]
[1771584251115,3.03962459,84.31,84.272,4.02356225]
[1771584252814,3.03962459,84.31,84.277,4.02356225]
[1771584253815,0.59657829,84.318,84.277,4.02356225]
[1771584254813,0.59657829,84.318,84.28,4.02356225]
[1771584255818,3.03962459,84.31,84.282,4.02356225]
[1771584257117,0.5889289,84.309,84.281,10.6832]
[1771584257617,3.03962459,84.31,84.282,4.02356225]
[1771584259220,3.03962459,84.31,84.285,10.6828]
[1771584259423,3.03962459,84.32,84.285,4.02356225]
[1771584260212,3.03962459,84.32,84.292,10.6818]
[1771584266328,3.03962459,84.32,84.285,4.02356225]
[1771584267824,3.03962459,84.32,84.287,10.6825]
[1771584268327,3.03962459,84.32,84.287,14.70606225]
[1771584268924,3.03962459,84.32,84.288,4.02356225]
[1771584271539,0.43549295,84.319,84.288,4.02356225]
[1771584273736,0.43549295,84.319,84.289,10.6823]
[1771584274637,0.43549295,84.319,84.29,4.02356225]
[1771584284745,10.6787,84.318,84.29,4.02356225]
[1771584286539,8.6415228,84.317,84.29,4.02356225]
[1771584286736,8.6415228,84.316,84.29,4.02356225]
[1771584286943,8.64160953,84.315,84.29,4.02356225]
[1771584287243,11.0870444,84.318,84.29,4.02356225]
[1771584287443,8.64160209,84.317,84.29,4.02356225]
[1771584287646,8.64160209,84.316,84.29,4.02356225]
[1771584287943,0.4083444,84.318,84.29,4.02356225]
[1771584288245,8.64142863,84.317,84.29,4.02356225]
[1771584288546,8.64142863,84.316,84.29,4.02356225]
[1771584288748,0.4083444,84.318,84.29,4.02356225]
[1771584288948,8.64140003,84.317,84.29,4.02356225]
[1771584289148,10.6785,84.319,84.29,4.02356225]
[1771584291549,0.31790618,84.322,84.29,4.02356225]
[1771584291749,8.64060499,84.321,84.29,4.02356225]
[1771584291950,0.31790618,84.322,84.29,4.02356225]
[1771584292149,8.64060499,84.321,84.29,4.02356225]
[1771584292350,8.64058907,84.32,84.29,4.02356225]
[1771584292645,8.64058907,84.319,84.29,4.02356225]
[1771584292949,8.64058907,84.318,84.29,4.02356225]
[1771584293150,8.64058907,84.317,84.29,4.02356225]
[1771584293444,10.6783,84.321,84.29,4.02356225]
[1771584295853,0.31790618,84.322,84.29,4.02356225]
[1771584296159,8.64053471,84.321,84.29,4.02356225]
[1771584296456,0.31790618,84.322,84.29,4.02356225]
[1771584296642,8.64093413,84.321,84.29,4.02356225]
[1771584296846,0.31790618,84.322,84.29,4.02356225]
[1771584297049,8.6409332,84.321,84.29,4.02356225]
[1771584297257,0.31790618,84.322,84.29,4.02356225]
[1771584297441,8.64139493,84.321,84.29,4.02356225]
[1771584297646,0.31790618,84.322,84.29,4.02356225]
[1771584297853,8.64139493,84.321,84.29,4.02356225]
[1771584298056,0.31790618,84.322,84.29,4.02356225]
[1771584298259,8.64139493,84.321,84.29,4.02356225]
[1771584298457,0.31790618,84.322,84.29,4.02356225]
[1771584298649,8.64160708,84.321,84.29,4.02356225]
[1771584298845,0.31790618,84.322,84.29,4.02356225]
[1771584299045,8.64160708,84.321,84.29,4.02356225]
[1771584299254,0.31790618,84.322,84.29,4.02356225]
[1771584299555,8.64217208,84.321,84.29,4.02356225]
[1771584299753,0.31790618,84.322,84.29,4.02356225]
[1771584299955,8.64217208,84.321,84.29,4.02356225]
[1771584300153,0.31790618,84.322,84.29,4.02356225]
[1771584300355,8.64274146,84.321,84.29,4.02356225]
[1771584300556,8.64274146,84.32,84.29,4.02356225]
[1771584300751,0.31790618,84.322,84.29,4.02356225]
[1771584300952,0.11910836,84.32,84.29,4.02356225]
[1771584301456,3.15873295,84.32,84.29,4.02356225]
[1771584302359,8.644639,84.319,84.29,4.02356225]
[1771584302555,3.15873295,84.32,84.29,4.02356225]
[1771584302756,8.64470948,84.319,84.29,4.02356225]
[1771584303058,3.15873295,84.32,84.29,4.02356225]
[1771584303257,8.64470948,84.319,84.29,4.02356225]
[1771584303456,3.15873295,84.32,84.29,4.02356225]
[1771584303758,8.64586923,84.319,84.29,4.02356225]
[1771584303958,3.15873295,84.32,84.29,4.02356225]
[1771584304158,8.64586923,84.319,84.29,4.02356225]
[1771584304358,8.64586923,84.318,84.29,4.02356225]
[1771584304558,3.15873295,84.32,84.29,4.02356225]
[1771584304759,8.64742782,84.319,84.29,4.02356225]
[1771584304959,8.64742782,84.318,84.29,4.02356225]
[1771584305160,3.15873295,84.32,84.29,4.02356225]
[1771584305358,8.64740362,84.319,84.29,4.02356225]
[1771584305559,8.64740362,84.318,84.29,4.02356225]
[1771584305761,0.09240899,84.319,84.29,4.02356225]
[1771584305958,8.64745009,84.318,84.29,4.02356225]
[1771584306153,0.09240899,84.319,84.29,4.02356225]
[1771584306360,8.64742583,84.318,84.29,4.02356225]
[1771584306557,0.09240899,84.319,84.29,4.02356225]
[1771584306862,8.64747054,84.318,84.29,4.02356225]
[1771584307062,0.09240899,84.319,84.29,4.02356225]
[1771584307264,8.64747054,84.318,84.29,4.02356225]
[1771584307465,0.09240899,84.319,84.29,4.02356225]
[1771584307763,8.64747119,84.318,84.29,4.02356225]
[1771584307963,0.09240899,84.319,84.29,4.02356225]
[1771584308266,0.09075832,84.317,84.29,4.02356225]
[1771584310362,3.03984238,84.32,84.29,4.02356225]
[1771584310664,8.64747117,84.319,84.29,4.02356225]
[1771584310864,8.64747117,84.318,84.29,4.02356225]
[1771584311059,3.03984238,84.32,84.29,4.02356225]
[1771584311264,8.64747117,84.319,84.29,4.02356225]
[1771584311457,8.64747117,84.318,84.29,4.02356225]
[1771584311663,3.03984238,84.32,84.29,4.02356225]
[1771584311863,8.64747116,84.319,84.29,4.02356225]
[1771584312065,8.64747116,84.318,84.29,4.02356225]
[1771584312264,3.03984238,84.32,84.29,4.02356225]
[1771584312466,8.64747102,84.319,84.29,4.02356225]
[1771584312668,8.64747102,84.318,84.29,4.02356225]
[1771584312869,0.08548309,84.319,84.29,4.02356225]
[1771584313072,8.63888709,84.318,84.29,4.02356225]
[1771584313371,0.08548309,84.319,84.29,4.02356225]
[1771584313561,8.63888847,84.318,84.29,4.02356225]
[1771584313857,0.08548309,84.319,84.29,4.02356225]
[1771584314058,8.63888847,84.318,84.29,4.02356225]
[1771584314258,0.08548309,84.319,84.29,4.02356225]
[1771584314464,8.63888987,84.318,84.29,4.02356225]
[1771584314664,0.08548309,84.319,84.29,4.02356225]
[1771584314868,8.63888987,84.318,84.29,4.02356225]
[1771584315064,0.08548309,84.319,84.29,4.02356225]
[1771584315286,8.63888987,84.318,84.29,4.02356225]
[1771584315468,0.08548309,84.319,84.29,4.02356225]
[1771584315668,8.63889126,84.318,84.29,4.02356225]
[1771584315865,0.08548309,84.319,84.29,4.02356225]
[1771584316067,8.63889126,84.318,84.29,4.02356225]
[1771584316272,0.08548309,84.319,84.29,4.02356225]
[1771584316472,8.63889266,84.318,84.29,4.02356225]
[1771584316668,0.08548309,84.319,84.29,4.02356225]
[1771584316969,8.63889266,84.318,84.29,4.02356225]
[1771584317271,0.08548309,84.319,84.29,4.02356225]
[1771584317565,8.63889366,84.318,84.29,4.02356225]
[1771584317769,0.0754375,84.331,84.292,4.0910184]
[1771584317971,3.03984238,84.35,84.301,4.09111884]
[1771584318167,8.63719946,84.349,84.301,4.09111884]
[1771584318368,8.63719946,84.348,84.301,4.09111884]
[1771584318569,0.07523663,84.353,84.301,4.09111884]
[1771584318570,3.03984238,84.34,84.301,4.09111884]
[1771584319272,3.03984238,84.31,84.271,4.10412485]
[1771584319767,0.04528515,84.319,84.271,4.10412485]
[1771584319972,3.03984238,84.32,84.271,4.10412485]
[1771584320172,0.04528515,84.329,84.287,4.10421993]
[1771584320372,3.03984238,84.33,84.287,4.10421993]
[1771584320976,3.03984238,84.33,84.299,4.10421993]
[1771584326077,3.08300151,84.34,84.299,4.10421993]
[1771584326278,8.62644401,84.339,84.302,4.08180324]
[1771584326479,8.62644401,84.338,84.302,4.08180324]
[1771584326671,8.62644401,84.337,84.302,4.08180324]
[1771584326872,8.62644401,84.336,84.302,4.08180324]
[1771584327073,8.62644401,84.335,84.302,4.08180324]
[1771584327372,3.03984238,84.34,84.302,4.08180324]
[1771584327567,8.62529339,84.339,84.302,4.08180324]
[1771584327877,8.62529339,84.338,84.307,4.0958573]
[1771584328073,8.62529339,84.337,84.307,4.0958573]
[1771584328273,8.62479086,84.336,84.307,4.0958573]
[1771584328472,3.03984238,84.34,84.307,4.0958573]
[1771584328771,8.66943739,84.339,84.307,4.0958573]
[1771584328973,8.62443775,84.338,84.307,4.0958573]
[1771584329176,8.62443775,84.337,84.307,4.0958573]
[1771584329380,8.62443775,84.336,84.307,4.0958573]
[1771584329678,8.62443775,84.335,84.307,4.0958573]
[1771584329880,0.04499964,84.339,84.307,4.0958573]
[1771584330077,8.62434717,84.338,84.307,4.0958573]
[1771584330279,8.62434717,84.337,84.307,4.0958573]
[1771584330481,8.62434717,84.336,84.307,4.0958573]
[1771584330680,8.62434717,84.335,84.307,4.0958573]
[1771584330881,8.62434717,84.334,84.307,4.0958573]
[1771584331081,0.04499964,84.339,84.307,4.0958573]
[1771584331278,8.62395209,84.338,84.307,4.0958573]
[1771584331479,8.62395209,84.337,84.307,4.0958573]
[1771584331780,8.62395209,84.336,84.307,4.0958573]
[1771584331977,8.62395209,84.335,84.307,4.0958573]
[1771584332178,0.04499964,84.339,84.307,4.0958573]
[1771584332380,8.62342837,84.338,84.307,4.0958573]
[1771584332679,8.62342837,84.337,84.307,4.0958573]
[1771584332879,8.62342837,84.336,84.307,4.0958573]
[1771584333079,8.62342837,84.335,84.307,4.0958573]
[1771584333281,0.04499964,84.339,84.307,4.0958573]
[1771584333581,3.03984238,84.32,84.271,4.04973728]
[1771584334479,3.03984238,84.32,84.295,10.6815]
[1771584335073,0.1288916,84.329,84.295,10.6815]
[1771584335276,0.1288916,84.329,84.244,29.47991764]
[1771584335277,3.03984238,84.33,84.298,4.03503898]
[1771584336781,3.03984238,84.33,84.308,10.6798]
[1771584338580,0.0398367,84.329,84.297,10.6812]
[1771584338884,3.03984238,84.32,84.297,10.6812]
[1771584341594,3.03984238,84.32,84.291,4.0681639]
[1771584346394,3.03984238,84.32,84.292,14.78065592]
[1771584346590,0.0398367,84.329,84.293,4.09875592]
[1771584347794,0.0398367,84.329,84.295,4.09639402]
[1771584351998,3.03984238,84.33,84.297,4.12246037]
[1771584353190,11.01233151,84.344,84.278,4.11819006]
[1771584353498,3.03984238,84.31,84.278,4.11819006]
[1771584353898,3.03984238,84.32,84.278,4.11819006]
[1771584354898,3.03984238,84.32,84.281,4.11825172]
[1771584355192,0.23849189,84.319,84.281,4.11825172]
[1771584355395,3.03984238,84.31,84.281,4.11825172]
[1771584358802,0.23916609,84.309,84.281,4.11825172]
[1771584359191,3.03984238,84.3,84.272,4.00066061]
[1771584359395,0.23916609,84.309,84.272,4.00066061]
[1771584360507,0.22836196,84.319,84.272,4.00066061]
[1771584360801,0.22836196,84.317,84.272,4.00066061]
[1771584360996,0.22836196,84.317,84.218,35.57]
[1771584360997,0.20292009,84.327,84.284,4.00066061]
[1771584362699,0.20292009,84.327,84.288,4.00066061]
[1771584364302,0.20292009,84.327,84.291,4.14079549]
[1771584365805,0.20292009,84.327,84.293,4.14050454]
[1771584366403,0.20292009,84.327,84.295,4.14055463]
[1771584371108,3.03906164,84.35,84.308,4.17065001]
[1771584371307,8.6649474,84.349,84.308,4.17065001]
[1771584371506,8.6649474,84.348,84.308,4.17065001]
[1771584371702,8.6649474,84.347,84.308,4.17065001]
[1771584372007,8.6649474,84.346,84.308,4.17065001]
[1771584372209,8.6649474,84.345,84.308,4.17065001]
[1771584372410,8.6649474,84.344,84.308,4.17065001]
[1771584372606,8.6649474,84.343,84.308,4.17065001]
[1771584372807,10.6747,84.349,84.311,4.17069243]
[1771584373007,8.66238433,84.348,84.311,4.17069243]
[1771584373209,8.66238433,84.347,84.311,4.17069243]
[1771584373408,8.66238433,84.346,84.311,4.17069243]
[1771584373605,8.66238433,84.345,84.311,4.17069243]
[1771584373806,10.6747,84.349,84.313,4.18929433]
[1771584380614,13.71236164,84.36,84.316,4.19220644]
[1771584380820,8.65728089,84.359,84.316,4.19220644]
[1771584381016,13.71236164,84.36,84.316,4.19220644]
[1771584381418,3.03906164,84.36,84.316,4.19220644]
[1771584381816,3.03906164,84.35,84.316,4.19220644]
[1771584383122,3.03906164,84.35,84.318,4.19750097]
[1771584384321,3.03906164,84.36,84.318,4.19750097]
[1771584384722,3.03906164,84.36,84.321,4.19753498]
[1771584385825,3.03906164,84.36,84.324,4.19793521]
[1771584386825,3.03906164,84.36,84.326,4.19796841]
[1771584388723,3.03906164,84.35,84.301,4.20018517]
[1771584388924,3.03906164,84.35,84.285,21.93350782]
[1771584388925,8.64639207,84.391,84.341,4.20623002]
[1771584389123,11.68545371,84.39,84.341,4.20623002]
[1771584389427,3.03906164,84.39,84.341,4.20623002]
[1771584389924,3.03906164,84.37,84.344,4.20623002]
[1771584390831,3.03906164,84.36,84.333,4.20626087]
[1771584391731,3.03906164,84.37,84.333,4.20626087]
[1771584396844,3.03906164,84.37,84.335,4.18521981]
[1771584399950,3.03906164,84.37,84.336,10.6763]
[1771584400251,3.03906164,84.37,84.336,14.86177441]
[1771584400449,3.03906164,84.37,84.337,4.18547441]
[1771584400750,3.03906164,84.37,84.339,14.86147441]
[1771584401246,3.03906164,84.37,84.345,10.6752]
[1771584401548,3.03906164,84.38,84.346,4.18427982]
[1771584401748,3.03906164,84.37,84.346,4.18427982]
[1771584402150,3.03906164,84.37,84.295,21.3629]
[1771584402151,3.03906164,84.37,84.336,4.18430835]
[1771584402349,3.03906164,84.36,84.336,4.18430835]
[1771584402539,3.03906164,84.37,84.336,4.18430835]
[1771584408351,3.03906164,84.37,84.338,4.18875903]
[1771584410447,3.03906164,84.37,84.34,4.19339747]
[1771584411160,3.03906164,84.38,84.34,4.19339747]
[1771584411757,3.03906164,84.38,84.341,4.19290848]
[1771584412559,3.03906164,84.38,84.343,4.19293324]
[1771584414661,3.03906164,84.38,84.344,10.6753]
[1771584414961,3.03906164,84.38,84.345,4.1536785]
[1771584417258,8.72577444,84.379,84.345,4.1536785]
[1771584417458,3.03906164,84.38,84.345,4.1536785]
[1771584417761,8.72577444,84.379,84.345,4.1536785]
[1771584417961,3.03906164,84.38,84.345,4.1536785]
[1771584418157,8.7257752,84.379,84.345,4.1536785]
[1771584418460,8.72743726,84.378,84.345,4.1536785]
[1771584418664,3.03906164,84.38,84.345,4.1536785]
[1771584418860,8.72748227,84.379,84.345,4.1536785]
[1771584419050,8.72748227,84.378,84.345,4.1536785]
[1771584419251,3.03906164,84.38,84.345,4.1536785]
[1771584419456,8.72800586,84.379,84.345,4.1536785]
[1771584419658,8.72800586,84.378,84.345,4.1536785]
[1771584419862,3.03906164,84.38,84.345,4.1536785]
[1771584420066,8.72800586,84.379,84.345,4.1536785]
[1771584420357,3.03906164,84.38,84.345,4.1536785]
[1771584420561,10.671,84.379,84.345,4.1536785]
[1771584425666,10.6721,84.37,84.327,4.14470495]
[1771584426061,3.03906164,84.38,84.331,4.14472901]
[1771584426262,3.03906164,84.38,84.338,4.14472901]
[1771584426962,3.03906164,84.39,84.35,4.14472901]
[1771584427157,8.73087391,84.389,84.35,4.14472901]
[1771584427362,3.03906164,84.39,84.35,4.14472901]
[1771584427564,8.73116203,84.389,84.35,4.14472901]
[1771584427765,3.03906164,84.39,84.35,4.14472901]
[1771584427965,8.73116203,84.389,84.352,4.13376692]
[1771584428166,3.03465043,84.39,84.352,4.13376692]
[1771584428371,8.73115969,84.389,84.352,4.13376692]
[1771584428562,3.03465043,84.39,84.352,4.13376692]
[1771584428762,8.7318532,84.389,84.354,4.13376692]
[1771584429061,3.03465043,84.39,84.354,4.13376692]
[1771584429264,8.73184711,84.389,84.354,4.13376692]
[1771584429466,8.73184711,84.388,84.354,4.13376692]
[1771584429665,3.03465043,84.39,84.354,4.13376692]
[1771584429866,8.73279242,84.389,84.354,4.13376692]
[1771584430067,8.73279242,84.388,84.354,4.13376692]
[1771584430264,3.03465043,84.39,84.354,4.13376692]
[1771584430468,8.73328791,84.389,84.354,4.13376692]
[1771584430763,8.73328791,84.388,84.354,4.13376692]
[1771584430965,3.03465043,84.39,84.362,10.673]
[1771584431267,3.03465043,84.4,84.363,4.14236565]
[1771584431465,8.73215272,84.399,84.363,4.14236565]
[1771584431667,8.73215272,84.399,84.323,22.01116716]
[1771584431668,3.03465043,84.41,84.366,4.14236565]
[1771584431866,8.73113736,84.409,84.366,4.14236565]
[1771584432068,3.03465043,84.41,84.366,4.14236565]
[1771584432666,3.03465043,84.41,84.375,10.6714]
[1771584432866,3.03465043,84.41,84.375,14.813788]
[1771584433470,3.03465043,84.42,84.382,4.15217526]
[1771584434365,11.04253238,84.443,84.373,10.6716]
[1771584434566,11.04253238,84.443,84.36,4.15219651]
[1771584434567,3.03465043,84.4,84.36,4.15219651]
[1771584435768,3.03465043,84.4,84.362,10.673]
[1771584435967,3.03465043,84.4,84.362,14.83992359]
[1771584437068,10.6684,84.399,84.353,10.6741]
[1771584437272,3.03465043,84.39,84.345,4.16116357]
[1771584438762,3.03465043,84.39,84.345,14.83626357]
[1771584438966,3.03465043,84.38,84.345,14.83626357]
[1771584439770,8.70195212,84.395,84.345,14.83626357]
[1771584439969,3.03465043,84.39,84.345,14.83626357]
[1771584440172,3.03465043,84.39,84.347,14.83510606]
[1771584440369,3.03465043,84.39,84.305,22.01116716]
[1771584440370,8.70304676,84.389,84.306,4.16020606]
[1771584440668,3.03465043,84.35,84.308,4.16020606]
[1771584441265,8.70304676,84.366,84.311,4.14688554]
[1771584441470,3.03465043,84.35,84.311,4.14688554]
[1771584442371,3.03465043,84.34,84.301,10.6807]
[1771584443471,3.03465043,84.34,84.301,14.85443331]
[1771584443775,10.6759,84.34,84.286,4.17373331]
[1771584444072,3.03465043,84.34,84.291,4.17375109]
[1771584444580,3.03465043,84.33,84.291,4.17375109]
[1771584444768,3.03465043,84.33,84.296,4.17375109]
[1771584445171,3.03465043,84.32,84.281,4.20467659]
[1771584445372,3.03465043,84.32,84.251,22.01116716]
[1771584445373,10.6741,84.354,84.299,4.20467659]
[1771584445577,3.03465043,84.34,84.299,4.20467659]
[1771584446665,3.03465043,84.34,84.303,4.20469235]
[1771584447066,3.03465043,84.32,84.261,4.27035363]
[1771584447371,3.03465043,84.32,84.271,4.27035363]
[1771584447572,3.03465043,84.32,84.286,4.27035363]
[1771584447776,3.03465043,84.33,84.286,4.27035363]
[1771584448175,3.03465043,84.33,84.288,4.27036566]
[1771584449668,3.03465043,84.33,84.289,10.6822]
[1771584449874,3.03465043,84.33,84.29,4.21353124]
[1771584450070,14.80086221,84.39,84.29,4.21353124]
[1771584450071,3.03465043,84.34,84.291,4.21354584]
[1771584450275,3.03465043,84.34,84.306,4.21354584]
[1771584451778,3.03465043,84.34,84.308,4.2196565]
[1771584453174,3.03465043,84.33,84.308,4.2196565]
[1771584453380,3.03465043,84.34,84.31,4.19054555]
[1771584456681,3.03465043,84.34,84.31,14.87004555]
[1771584457582,3.03465043,84.34,84.313,4.19821961]
[1771584457980,3.03465043,84.32,84.257,4.19823347]
[1771584458188,3.03465043,84.32,84.293,10.6817]
[1771584459879,3.03465043,84.32,84.285,10.6828]
[1771584460587,8.6932986,84.364,84.254,4.15872451]
[1771584460784,5.043e-05,84.29,84.254,4.15872451]
[1771584460991,3.03465043,84.31,84.261,4.15620228]
[1771584461398,3.03465043,84.31,84.272,4.15620228]
[1771584461892,3.03465043,84.3,84.272,4.15620228]
[1771584462188,3.03465043,84.3,84.261,10.6857]
[1771584462390,3.03465043,84.29,84.26,4.15621733]
[1771584463892,3.03465043,84.28,84.26,4.15621733]
[1771584464295,10.6787,84.318,84.261,4.10290894]
[1771584464595,3.03465043,84.29,84.261,4.10290894]
[1771584464796,10.6776,84.327,84.27,4.10290894]
[1771584464992,3.03465043,84.3,84.27,4.10290894]
[1771584465497,3.03465043,84.29,84.26,4.134488]
[1771584465995,3.03465043,84.27,84.233,4.13450326]
[1771584467698,3.03465043,84.27,84.236,4.11605393]
[1771584468596,3.03465043,84.28,84.24,4.11606959]
[1771584468791,3.03465043,84.29,84.241,4.11606959]
[1771584469188,3.03465043,84.29,84.255,10.6866]
[1771584469393,3.03465043,84.3,84.256,4.07142516]
[1771584469796,11.04253238,84.355,84.256,4.07142516]
[1771584469997,3.03465043,84.29,84.256,4.07142516]
[1771584470798,3.03465043,84.29,84.257,14.75774222]
[1771584472197,187.3652,84.366,84.19,35.6]
[1771584472198,11.04253238,84.349,84.223,4.15837951]
[1771584472397,672.9033,84.392,84.223,4.15837951]
[1771584472398,3.03465043,84.26,84.223,4.15837951]
[1771584472696,3.03465043,84.27,84.223,4.15837951]
[1771584473001,3.03465043,84.27,84.233,4.15837951]
[1771584473803,3.03465043,84.27,84.235,10.6891]
[1771584474401,3.03465043,84.27,84.233,4.15837951]
[1771584475397,3.03465043,84.24,84.19,4.18902746]
[1771584475595,14.80086221,84.327,84.19,4.18902746]
[1771584475596,8.6932986,84.3,84.19,4.18902746]
[1771584475800,3.03465043,84.26,84.211,4.18902746]
[1771584475999,10.6823,84.289,84.214,4.18903907]
[1771584476201,3.03465043,84.27,84.221,4.18903907]
[1771584476700,3.03465043,84.28,84.231,4.18903907]
[1771584476906,3.03465043,84.27,84.231,4.18903907]
[1771584477109,3.03465043,84.28,84.231,4.18903907]
[1771584478006,9.05438017,84.3,84.231,4.18903907]
[1771584478203,9.05438017,84.28,84.231,4.18903907]
[1771584478801,19.73538017,84.3,84.233,4.27042445]
[1771584479397,9.05438017,84.3,84.233,4.27042445]
[1771584479603,9.05438017,84.3,84.236,4.14884637]